fUST/lending_fUST_20251020
["ID","MTS","AMOUNT","RATE_DAILY","PERIOD"]
[391826383,1760891434350,-28685.80700848,0.00039295,30]
[391826384,1760891434359,-47646.22,0.000393,14]
[391826385,1760891434369,-2500.0,0.00039338,5]
[391826386,1760891434378,-8157.71506005,0.00039344,2]
[391826387,1760891434387,-551.96612834,0.00039344,2]
[391826388,1760891434397,-1000.0,0.00039394,30]
[391826389,1760891434406,-151.0,0.00039394,30]
[391826390,1760891434416,-414.0,0.00039394,30]
[391826391,1760891434425,-404.98868065,0.00039394,30]
[391826392,1760891434435,-250.0,0.00039394,30]
[391826393,1760891434444,-250.0,0.00039394,30]
[391826394,1760891434454,-1000.0,0.00039394,30]
[391826395,1760891434463,-429.318,0.00039394,30]
[391826396,1760891434474,-151.0,0.00039394,30]
[391826397,1760891434483,-250.0,0.00039394,30]
[391826398,1760891434493,-250.0,0.00039394,30]
[391826399,1760891434502,-445.202766,0.00039394,30]
[391826400,1760891434512,-151.0,0.00039394,30]
[391826401,1760891434521,-250.0,0.00039394,30]
[391826402,1760891434531,-250.0,0.00039394,30]
[391826403,1760891434540,-461.67526834,0.00039394,30]
[391826404,1760891434550,-151.0,0.00039394,30]
[391826405,1760891434559,-250.0,0.00039394,30]
[391826406,1760891434568,-250.0,0.00039394,30]
[391826407,1760891434578,-478.75725327,0.00039394,30]
[391826408,1760891434588,-151.0,0.00039394,30]
[391826409,1760891434597,-250.0,0.00039394,30]
[391826410,1760891434607,-496.47127164,0.00039394,30]
[391826411,1760891434616,-155.91597635,0.00039394,30]
[391826412,1760891434626,-250.0,0.00039394,30]
[391826413,1760891434635,-166.00000001,0.00039394,30]
[391826414,1760891434645,-250.0,0.00039394,30]
[391826415,1760891434654,-250.0,0.00039394,30]
[391826416,1760891434664,-250.0,0.00039394,30]
[391826417,1760891434673,-250.0,0.00039394,30]
[391826418,1760891434682,-151.0,0.00039394,30]
[391826419,1760891434692,-250.0,0.00039394,30]
[391826420,1760891434701,-250.0,0.00039394,30]
[391826421,1760891434711,-151.0,0.00039394,30]
[391826422,1760891434721,-250.0,0.00039394,30]
[391826423,1760891434731,-250.0,0.00039394,30]
[391826424,1760891434740,-151.0,0.00039394,30]
[391826425,1760891434749,-250.0,0.00039394,30]
[391826426,1760891434759,-6423.14858489,0.00039394,30]
[391826427,1760891434849,77.75599171,0.00024042,2]
[391826428,1760891434875,232.6506531,0.00024042,2]
[391826447,1760891437673,-627.87,0.000274,2]
[391826448,1760891437682,-627.87,0.000313,2]
[391826449,1760891437692,-627.87,0.000356,2]
[391826450,1760891437702,-151.0,0.00036673,120]
[391826451,1760891437711,-627.87,0.000384,2]
[391826452,1760891437720,-687.4647006,0.00039394,30]
[391826453,1760891437732,-10189.38671451,0.00039394,30]
[391826454,1760891437741,-250.0,0.00039394,30]
[391826455,1760891437751,-250.0,0.00039394,30]
[391826456,1760891437760,-12861.79512427,0.00039394,30]
[391826457,1760891437770,-250.0,0.00039394,30]
[391826458,1760891437779,-151.0,0.00039394,120]
[391826459,1760891437788,-151.0,0.00039394,120]
[391826460,1760891437798,-15569.52000681,0.00039395,30]
[391826461,1760891437809,-2800.0,0.00039395,30]
[391826462,1760891437826,-169397.31506703,0.00039395,30]
[391826463,1760891437835,-151.0,0.00039395,120]
[391826464,1760891437845,-1000.0,0.00039395,120]
[391826465,1760891437854,-1000.0,0.00039395,120]
[391826466,1760891437864,-1000.0,0.00039395,120]
[391826467,1760891437874,-1000.0,0.00039395,120]
[391826468,1760891437883,-1000.0,0.00039395,120]
[391826469,1760891437897,-1000.0,0.00039395,120]
[391826470,1760891437907,-1000.0,0.00039395,120]
[391826471,1760891437916,-1000.0,0.00039395,120]
[391826472,1760891437926,-1000.0,0.00039395,120]
[391826473,1760891437936,-692.119553,0.00039395,120]
[391826474,1760891437945,-151.0,0.00039395,120]
[391826475,1760891437955,-151.0,0.00039395,15]
[391826476,1760891437964,-151.0,0.00039395,120]
[391826477,1760891437974,-151.0,0.00039395,120]
[391826478,1760891437983,-151.0,0.00039395,120]
[391826479,1760891437992,-196.452179,0.00039395,120]
[391826480,1760891438001,-196.452179,0.00039395,120]
[391826481,1760891438012,-196.452179,0.00039395,120]
[391826482,1760891438021,-196.452179,0.00039395,120]
[391826483,1760891438030,-1633.892797,0.000394,30]
[391826484,1760891438040,-200.0,0.00039417,120]
[391826485,1760891438050,-356.61297027,0.00039444,14]
[391826486,1760891438060,-501.51816908,0.00039444,14]
[391826487,1760891438070,-6557.7543,0.00039444,7]
[391826488,1760891438079,-1158553.3676006,0.00039444,7]
[391826536,1760891439958,-151.0,0.00036673,120]
[391826538,1760891439968,-2239.665,0.00039444,7]
[391826541,1760891440088,-83931.3624366,0.00039444,7]
[391826571,1760891442810,-3465.33895421,0.00039444,7]
[391826572,1760891442835,-4053.46277852,0.00039444,7]
[391826573,1760891442847,-500.0,0.00039444,7]
[391826574,1760891444433,300.0,0.000241,2]
[391826616,1760891446802,-119018.94130843,0.00039444,7]
[391826623,1760891480782,385.8,0.00023606,2]
[391826625,1760891520622,500.0,0.00024141,2]
[391826626,1760891520653,300.0,0.00024141,2]
[391826627,1760891520681,500.0,0.00024141,2]
[391826628,1760891520709,500.0,0.00024141,2]
[391826629,1760891520737,237.45918802,0.00024141,2]
[391826630,1760891520764,182.54081198,0.00024141,2]
[391826634,1760891562509,385.1,0.00021948,2]
[391826635,1760891562910,770.2,0.00022994,2]
[391826636,1760891563305,1155.29,0.00024039,2]
[391826645,1760891641170,357.6,0.0002289,2]
[391826646,1760891641588,715.2,0.0002398,2]
[391826649,1760891697570,-5000.0,0.00024483,2]
[391826650,1760891697593,-1072.8,0.0002507,2]
[391826651,1760891697615,-1430.4,0.0002616,2]
[391826652,1760891697636,-1788.0,0.0002725,2]
[391826653,1760891699852,1282.85527215,0.00024142,2]
[391826655,1760891716772,162.0,0.00025589,17]
[391826656,1760891719767,289.33,0.00022885,2]
[391826657,1760891720168,578.66,0.00023975,2]
[391826658,1760891720596,867.99,0.00025064,2]
[391826659,1760891721043,315.96472785,0.00026154,2]
[391826665,1760891773522,352.395911,0.00013699,2]
[391826666,1760891773704,352.395911,0.00020187,2]
[391826668,1760891799588,263.22,0.00022628,2]
[391826669,1760891800046,526.43,0.00023706,2]
[391826670,1760891880630,253.16,0.00022632,2]
[391826671,1760891881069,506.33,0.00023709,2]
[391826685,1760891959885,243.5,0.00022036,2]
[391826686,1760891960216,487.0,0.00023085,2]
[391826687,1760891960626,730.5,0.00024135,2]
[391826689,1760892038966,224.9,0.00022297,2]
[391826690,1760892039374,449.81,0.00023358,2]
[391826692,1760892118852,216.32,0.00022051,2]
[391826693,1760892119329,432.63,0.00023101,2]
[391826694,1760892124821,417.15472785,0.00024142,2]
[391826695,1760892136883,417.15472785,0.00024,3]
[391826696,1760892144860,417.15472785,0.00024,3]
[391826698,1760892169380,3709.95399445,0.00024142,2]
[391826699,1760892169407,1290.04600555,0.00024142,2]
[391826700,1760892177661,5000.0,0.00024142,2]
[391826701,1760892199307,208.06,0.00022313,2]
[391826702,1760892199724,416.12,0.00023376,2]
[391826703,1760892282534,200.11,0.00022581,2]
[391826704,1760892282948,400.23,0.00023656,2]
[391826706,1760892361883,192.47,0.00022574,2]
[391826707,1760892362313,384.95,0.00023649,2]
[391826708,1760892441991,185.12,0.00022191,2]
[391826709,1760892442430,370.25,0.00023247,2]
[391826762,1760892522298,178.06,0.00021571,2]
[391826763,1760892522734,356.11,0.00022598,2]
[391826764,1760892523138,534.17,0.00023625,2]
[391826765,1760892545983,169.341647,0.00014901,2]
[391826767,1760892587468,3717.14472785,0.00024142,2]
[391826769,1760892601304,166.37,0.0002157,2]
[391826770,1760892601730,332.74,0.00022597,2]
[391826771,1760892602130,499.1,0.00023624,2]
[391826836,1760892631951,-665.47,0.00024651,2]
[391826838,1760892631961,-831.84,0.00025678,2]
[391826839,1760892631971,-352.395911,0.00026676,2]
[391826840,1760892631980,-998.21,0.00026705,2]
[391826841,1760892631989,-321.19188775,0.00027494,2]
[391826842,1760892631998,-1164.57,0.00027732,2]
[391826843,1760892632007,-1330.94,0.00028759,2]
[391826844,1760892632017,-1200.0,0.00029028,2]
[391826845,1760892632026,-1497.31,0.00029787,2]
[391826847,1760892632035,-169.341647,0.00029801,2]
[391826849,1760892632043,-490.498907,0.00030791,2]
[391826851,1760892632052,-250.0,0.00030795,2]
[391826853,1760892632061,-1663.68,0.00030814,2]
[391826855,1760892632070,-1200.0,0.00031452,3]
[391826857,1760892632079,-300.0,0.00031848,3]
[391826859,1760892632088,-400.0,0.00031848,2]
[391826861,1760892632097,-300.0,0.00031848,3]
[391826862,1760892632106,-1376.3525931,0.00031849,2]
[391826863,1760892632115,-352.395911,0.00033165,2]
[391826865,1760892632124,-500.0,0.0003426,2]
[391826867,1760892632133,-500.0,0.0003427,7]
[391826869,1760892632142,-302.02940953,0.00035335,2]
[391826871,1760892632151,-203.38088522,0.00035435,2]
[391826873,1760892632161,-302.02940947,0.00036759,2]
[391826875,1760892632170,-203.38088522,0.00037,120]
[391826877,1760892632179,-1229.67471703,0.000377,19]
[391826879,1760892632189,-500.0,0.000378,7]
[391826881,1760892632198,-1298.48090584,0.0003799,3]
[391826883,1760892632208,-188.61072848,0.00037999,15]
[391826885,1760892632217,-203.2645893,0.00037999,15]
[391826887,1760892632227,-1999.0,0.00037999,120]
[391826889,1760892632236,-75087.96,0.00038,60]
[391826891,1760892632245,-302.02940947,0.00038182,2]
[391826893,1760892632254,-320.13,0.00038591,2]
[391826895,1760892632264,-500.0,0.00038622,7]
[391826897,1760892632273,-411.0,0.00038691,2]
[391826899,1760892632282,-292.2017434,0.00039,10]
[391826901,1760892632291,-4918.48,0.00039034,22]
[391826903,1760892632300,-1999.0,0.00039095,120]
[391826905,1760892632310,-2459.24,0.00039144,23]
[391826907,1760892632320,-154.7206327,0.00039233,2]
[391826909,1760892632329,-154.72063269,0.00039261,2]
[391826911,1760892632338,-154.72063269,0.00039289,2]
[391826913,1760892632348,-6492.4045292,0.00039314,3]
[391826915,1760892632360,-154.72063269,0.00039316,2]
[391826917,1760892632370,-10387.8472467,0.00039324,3]
[391826919,1760892632379,-88392.46841782,0.00039334,2]
[391826981,1760892638651,-500.0,0.00034264,7]
[391826982,1760892638660,-500.0,0.00034264,7]
[391826983,1760892638670,-500.0,0.00034264,7]
[391826984,1760892638679,-500.0,0.00034264,7]
[391826985,1760892638689,-500.0,0.00034264,7]
[391826986,1760892638699,-500.0,0.00034264,7]
[391826987,1760892638710,-500.0,0.00034264,7]
[391826988,1760892638719,-500.0,0.00034264,7]
[391826989,1760892638729,-607.86796425,0.00034264,7]
[391826990,1760892638739,-500.0,0.00034264,7]
[391826991,1760892638748,-399.45581408,0.00034264,7]
[391826992,1760892638758,-500.0,0.00034264,7]
[391826993,1760892638768,-500.0,0.00034264,7]
[391826994,1760892638778,-500.0,0.00034264,7]
[391826995,1760892638788,-367.28458732,0.00034264,7]
[391826996,1760892638798,-500.0,0.00034264,7]
[391826997,1760892638807,-500.0,0.00034264,7]
[391826998,1760892638817,-500.0,0.00034264,7]
[391826999,1760892638826,-500.0,0.00034264,7]
[391827000,1760892638836,-620.0,0.00034264,7]
[391827001,1760892638845,-500.0,0.00034264,7]
[391827002,1760892638855,-500.0,0.00034264,7]
[391827003,1760892638865,-508.48010621,0.00034264,7]
[391827004,1760892638874,-500.0,0.00034264,7]
[391827005,1760892638884,-500.0,0.00034264,7]
[391827006,1760892638893,-500.0,0.00034264,7]
[391827007,1760892638903,-324.57013987,0.00034264,7]
[391827008,1760892638912,-45434.43376343,0.00039334,2]
[391827009,1760892638924,-48248.44660782,0.00039334,2]
[391827010,1760892638935,-53375.0,0.00039334,2]
[391827011,1760892638946,-134549.65121093,0.00039334,2]
[391827012,1760892638955,-154.72063269,0.00039344,2]
[391827013,1760892638965,-6723.4889538,0.00039355,2]
[391827014,1760892638975,-1298.48090584,0.00039424,3]
[391827015,1760892638984,-166.8353704,0.00039427,2]
[391827016,1760892638994,-2596.96181168,0.00039434,3]
[391827017,1760892639004,-86038.74227802,0.00039444,7]
[391827168,1760892642998,-423.25464821,0.00038356,30]
[391827170,1760892643008,-211.20535179,0.00039444,7]
[391827442,1760892646349,-31455.90467019,0.00039444,7]
[391827443,1760892646358,-500.0,0.00039444,7]
[391827444,1760892646367,-400.95586368,0.00039444,7]
[391827445,1760892646378,-378.59,0.000395,2]
[391827446,1760892646387,-265.0,0.00039551,2]
[391827447,1760892646398,-302.02940947,0.00039606,2]
[391827448,1760892646408,-352.395911,0.00039654,2]
[391827449,1760892646423,-1600.0,0.000398,120]
[391827450,1760892646433,-250.0,0.00039818,52]
[391827451,1760892646442,-250.0,0.00039894,30]
[391827452,1760892646452,-250.0,0.00039899,30]
[391827453,1760892646463,-874.17,0.000399,120]
[391827454,1760892646472,-7341.943554,0.000399,2]
[391827455,1760892646482,-500.0,0.00039973,5]
[391827456,1760892646492,-1298.48090584,0.0003998,3]
[391827457,1760892646502,-2596.96181168,0.0003999,3]
[391827458,1760892646512,-634.46,0.0003999,3]
[391827459,1760892646522,-250.0,0.00039998,30]
[391827460,1760892646531,-250.0,0.00039998,31]
[391827461,1760892646541,-250.0,0.00039999,30]
[391827462,1760892646551,-547.86735924,0.0004,120]
[391827494,1760892759286,417.15472785,0.00024142,2]
[391827498,1760893008806,-186.0,0.00025589,17]
[391827499,1760893008827,-160.0,0.00027,7]
[391827501,1760893087793,150.0,0.00025205,2]
[391827502,1760893088214,172.5,0.00025805,2]
[391827503,1760893088628,195.0,0.00026405,2]
[391827504,1760893227865,-1200.0,0.00029315,2]
[391827505,1760893227887,-300.0,0.00029315,2]
[391827506,1760893227909,-300.0,0.00029315,2]
[391827507,1760893227929,-300.0,0.00029315,2]
[391827508,1760893227951,-300.0,0.00029315,2]
[391827509,1760893227972,-300.0,0.00029315,2]
[391827510,1760893227992,-1200.0,0.00029315,2]
[391827511,1760893228015,-200.0,0.00029315,2]
[391827512,1760893228035,-285.1598176,0.00029317,2]
[391827514,1760893290691,449.0,0.00034302,60]
[391827515,1760893349326,5283.72,0.00024,2]
[391827516,1760893349348,10000.0,0.00024,2]
[391827517,1760893349372,10000.0,0.00024,2]
[391827518,1760893349393,4716.31,0.00024,2]
[391827519,1760893386965,417.15472785,0.00024142,2]
[391827520,1760893391800,9582.85527215,0.00024,2]
[391827521,1760893391823,2558.38472785,0.00024,2]
[391827522,1760893423436,7441.62527215,0.00024,2]
[391827523,1760893423460,2558.38472785,0.00024,2]
[391827524,1760893465804,7441.62527215,0.00024,2]
[391827525,1760893465826,2558.38472785,0.00024,2]
[391827526,1760893546776,7441.62527215,0.00024,2]
[391827527,1760893546799,2558.38472785,0.00024,2]
[391827530,1760893568825,18643.00256185,0.00034301,120]
[391827531,1760893590267,300.0,0.00024,2]
[391827532,1760893602198,300.0,0.00024,2]
[391827533,1760893614500,300.0,0.00024,2]
[391827534,1760893627374,300.0,0.00024,2]
[391827535,1760893639021,328.61,0.00023795,2]
[391827536,1760893640619,300.0,0.00024,2]
[391829216,1760893718603,324.43,0.00023814,2]
[391829859,1760893747645,5000.0,0.00024142,2]
[391830323,1760893769824,288.58527215,0.00024142,2]
[391830325,1760893769847,4711.41472785,0.00024142,2]
[391830775,1760893791699,5000.0,0.00024142,2]
[391830912,1760893798314,288.59527215,0.00023742,2]
[391830914,1760893798341,31.70472785,0.00023742,2]
[391831207,1760893814437,5000.0,0.00024142,2]
[391831522,1760893832143,-300.0,0.00024452,2]
[391831523,1760893832153,-300.0,0.00024452,2]
[391831524,1760893832162,-300.0,0.00024452,2]
[391831525,1760893832171,-300.0,0.00024452,2]
[391831526,1760893832181,-300.0,0.00024452,2]
[391831527,1760893832190,-1200.0,0.00024452,2]
[391831528,1760893832200,-5000.0,0.00024453,2]
[391831530,1760893832209,-150.0,0.00024453,2]
[391831531,1760893832218,-199.42106682,0.000248,2]
[391831532,1760893832227,-1200.0,0.00024952,2]
[391831533,1760893832237,-172.5,0.00025053,2]
[391831534,1760893832246,-188.0,0.00025589,17]
[391831535,1760893832255,-195.0,0.00025653,2]
[391831537,1760893832265,-6009.1672003,0.00025719,2]
[391831538,1760893832274,-640.6,0.000259,2]
[391831539,1760893832284,-215.85310535,0.00026,2]
[391831540,1760893832293,-217.5,0.00026253,2]
[391831541,1760893832302,-500.0,0.00026428,2]
[391831542,1760893832312,-500.0,0.00026428,2]
[391831544,1760893832321,-500.0,0.00026428,2]
[391831545,1760893832331,-500.0,0.00026428,2]
[391831546,1760893832340,-500.0,0.00026428,2]
[391831547,1760893832349,-402.74048218,0.00026428,2]
[391831548,1760893832358,-500.0,0.00026428,2]
[391831549,1760893832368,-500.0,0.00026428,2]
[391831551,1760893832377,-500.0,0.00026428,2]
[391831552,1760893832387,-500.0,0.00026428,2]
[391831553,1760893832397,-500.0,0.00026428,2]
[391831554,1760893832406,-500.0,0.00026428,2]
[391831555,1760893832416,-500.0,0.00026428,2]
[391831556,1760893832425,-500.0,0.00026428,2]
[391831558,1760893832435,-500.0,0.00026428,2]
[391831559,1760893832444,-500.0,0.00026428,2]
[391831560,1760893832453,-500.0,0.00026428,2]
[391831561,1760893832463,-500.0,0.00026428,2]
[391831562,1760893832472,-500.0,0.00026428,2]
[391831563,1760893832482,-500.0,0.00026428,2]
[391831565,1760893832491,-367.28458732,0.00026428,2]
[391831566,1760893832501,-500.0,0.00026428,2]
[391831567,1760893832510,-500.0,0.00026428,2]
[391831568,1760893832519,-229.68992841,0.00026428,2]
[391831569,1760893832529,-413.67627606,0.00026428,2]
[391831570,1760893832538,-429.96868301,0.00026428,2]
[391831572,1760893832548,-500.0,0.00026428,2]
[391831573,1760893832557,-500.0,0.00026428,2]
[391831574,1760893832567,-534.88846415,0.00026428,2]
[391831575,1760893832576,-500.0,0.00026428,2]
[391831576,1760893832585,-500.0,0.00026428,2]
[391831577,1760893832595,-432.88610186,0.00026428,2]
[391831579,1760893832604,-500.0,0.00026428,2]
[391831580,1760893832614,-500.0,0.00026428,2]
[391831581,1760893832623,-500.0,0.00026428,2]
[391831582,1760893832633,-500.0,0.00026428,2]
[391831583,1760893832643,-500.0,0.00026428,2]
[391831584,1760893832651,-500.0,0.00026428,2]
[391831586,1760893832660,-500.0,0.00026428,2]
[391831587,1760893832669,-500.0,0.00026428,2]
[391831588,1760893832679,-500.0,0.00026428,2]
[391831589,1760893832689,-500.0,0.00026428,2]
[391831590,1760893832698,-500.0,0.00026428,2]
[391831591,1760893832707,-500.0,0.00026428,2]
[391831592,1760893832717,-302.14117566,0.00026428,2]
[391831594,1760893832726,-500.0,0.00026428,2]
[391831595,1760893832735,-448.55919505,0.00026428,2]
[391831596,1760893832745,-500.0,0.00026428,2]
[391831597,1760893832755,-500.0,0.00026428,2]
[391831598,1760893832764,-500.0,0.00026428,2]
[391831599,1760893832773,-500.0,0.00026428,2]
[391831601,1760893832783,-500.0,0.00026428,2]
[391831602,1760893832792,-500.0,0.00026428,2]
[391831603,1760893832801,-500.0,0.00026428,2]
[391831604,1760893832810,-500.0,0.00026428,2]
[391831605,1760893832819,-500.0,0.00026428,2]
[391831606,1760893832829,-500.0,0.00026428,2]
[391831608,1760893832838,-500.0,0.00026428,2]
[391831609,1760893832847,-500.0,0.00026428,2]
[391831610,1760893832856,-500.0,0.00026428,2]
[391831611,1760893832866,-9693.4536676,0.00026429,2]
[391831612,1760893832876,-223.0,0.00026505,2]
[391831613,1760893832885,-1680.0,0.00026625,2]
[391831615,1760893832895,-466.6651265,0.00026702,2]
[391831616,1760893832905,-158.47,0.00026848,2]
[391831617,1760893832914,-240.0,0.00026853,2]
[391831618,1760893832924,-2987.22,0.00027,2]
[391831619,1760893832933,-160.0,0.00027,7]
[391831620,1760893832943,-1200.0,0.00027033,2]
[391831622,1760893832952,-262.5,0.00027453,2]
[391831623,1760893832962,-500.0,0.00027791,3]
[391831624,1760893832971,-500.0,0.00027791,5]
[391831625,1760893832981,-1240.85310535,0.00028,2]
[391831626,1760893832991,-285.0,0.00028053,2]
[391831627,1760893833001,-960.9,0.00028059,2]
[391831628,1760893833010,-1000.0,0.00028339,3]
[391831630,1760893833019,-1003.47982202,0.00028339,5]
[391831631,1760893833029,-1667.85666593,0.00028633,4]
[391831632,1760893833039,-307.5,0.00028653,2]
[391831633,1760893833048,-406.72294032,0.00028887,3]
[391831634,1760893833061,-258.62,0.00028923,10]
[391831635,1760893833071,-267.24,0.00028923,10]
[391831637,1760893833080,-666.0,0.00028933,2]
[391831638,1760893833090,-2351.0,0.00028992,2]
[391831639,1760893833101,-1667.82,0.00029006,4]
[391831640,1760893833111,-154.72063269,0.00029216,2]
[391831641,1760893833121,-330.0,0.00029253,2]
[391831642,1760893833131,-693.67,0.00029296,3]
[391831643,1760893833142,-346.84,0.00029296,3]
[391831645,1760893833151,-173.42,0.00029296,3]
[391831646,1760893833161,-520.27,0.00029296,3]
[391831647,1760893833171,-40032.4204996,0.00029306,2]
[391831648,1760893833180,-6850.0,0.00029317,2]
[391831649,1760893833190,-352.5,0.00029853,2]
[391831650,1760893833199,-374.3034341,0.00030135,2]
[391831652,1760893833208,-646.351118,0.00030137,120]
[391831653,1760893833218,-500.0,0.00030137,2]
[391831654,1760893833227,-500.0,0.00030137,2]
[391831655,1760893833236,-500.0,0.00030137,2]
[391831656,1760893833246,-500.0,0.00030137,2]
[391831657,1760893833255,-500.0,0.00030137,2]
[391831659,1760893833264,-462.77979347,0.00030137,2]
[391831660,1760893833273,-500.0,0.00030137,2]
[391831661,1760893833283,-500.0,0.00030137,2]
[391831662,1760893833292,-500.0,0.00030137,2]
[391831663,1760893833301,-500.0,0.00030137,2]
[391831664,1760893833311,-500.0,0.00030137,2]
[391831666,1760893833320,-500.0,0.00030137,2]
[391831667,1760893833329,-500.0,0.00030137,2]
[391831668,1760893833338,-500.0,0.00030137,2]
[391831669,1760893833347,-500.0,0.00030137,2]
[391831670,1760893833357,-500.0,0.00030137,2]
[391831671,1760893833366,-500.0,0.00030137,2]
[391831673,1760893833375,-500.0,0.00030137,2]
[391831674,1760893833385,-500.0,0.00030137,2]
[391831675,1760893833395,-1281.2,0.00030217,2]
[391831676,1760893833404,-589.95,0.00030236,30]
[391831677,1760893833413,-199.0,0.00030237,7]
[391831679,1760893833422,-589.95,0.00030237,30]
[391831680,1760893833431,-589.95,0.00030237,30]
[391831681,1760893833440,-387.58,0.000303,2]
[391831682,1760893833450,-375.0,0.00030453,2]
[391831683,1760893833460,-244.77,0.00030511,8]
[391831684,1760893833469,-1387.34,0.00030666,3]
[391831686,1760893833478,-693.68,0.00030666,3]
[391831687,1760893833488,-346.84,0.00030666,3]
[391831688,1760893833497,-1002.02,0.00031,2]
[391831689,1760893833506,-903.54050388,0.00031,120]
[391831690,1760893833516,-397.5,0.00031053,2]
[391831691,1760893833525,-160.0,0.00031068,44]
[391831693,1760893833534,-1002.02,0.00031174,2]
[391831694,1760893833544,-420.0,0.00031653,2]
[391831695,1760893833553,-903.54050388,0.000319,120]
[391831696,1760893833562,-275.50699608,0.00031906,2]
[391831697,1760893833572,-154.72063269,0.00032077,2]
[391831698,1760893833582,-442.5,0.00032253,2]
[391831700,1760893833591,-374.3034341,0.00032301,2]
[391831701,1760893833600,-1601.5,0.00032375,2]
[391831702,1760893833609,-1667.82,0.00032821,9]
[391831703,1760893833619,-465.0,0.00032853,2]
[391831704,1760893833628,-903.54050388,0.000329,120]
[391831705,1760893833638,-1667.82,0.000329,9]
[391831707,1760893833647,-353.18207497,0.00033004,2]
[391831708,1760893833656,-36759.50880749,0.00033121,2]
[391831709,1760893833669,-3272.91169211,0.00033121,2]
[391831710,1760893833678,-495.91259295,0.00033131,2]
[391831711,1760893833688,-45380.41308025,0.000332,14]
[391831777,1760893837528,-5000.0,0.00024953,2]
[391831779,1760893837549,-474.52160332,0.00029305,2]
[391831781,1760893837569,-265.6597593,0.00029305,2]
[391831796,1760893838046,-1242.76900197,0.000332,14]
[391831836,1760893840201,-875.59919563,0.000332,14]
[391831837,1760893840213,-6928.56872215,0.000332,14]
[391831838,1760893840223,-487.5,0.00033453,2]
[391831839,1760893840232,-250.0,0.00033841,2]
[391831841,1760893840241,-903.54050388,0.000339,120]
[391831842,1760893840250,-635.72773494,0.0003405,2]
[391831843,1760893840260,-510.0,0.00034053,2]
[391831844,1760893840269,-500.52718912,0.00034326,7]
[391831845,1760893840278,-881.62238747,0.00034356,2]
[391831846,1760893840288,-374.3034341,0.00034468,2]
[391831848,1760893840297,-7076.6756488,0.00034468,2]
[391831917,1760893843283,-7235.63356635,0.00034468,2]
[391831940,1760893844431,5000.0,0.0003,2]
[391831995,1760893847408,-34652.14390322,0.00034468,2]
[391832136,1760893855197,436.98734465,0.00026427,2]
[391832138,1760893855221,157.07514178,0.00026427,2]
[391832139,1760893855245,327.61768834,0.00026427,2]
[391832140,1760893855269,448.32094046,0.00026427,2]
[391832142,1760893855293,269.99652033,0.00026427,2]
[391832143,1760893855319,500.0,0.00026427,2]
[391832145,1760893855343,469.9655476,0.00026427,2]
[391832146,1760893855368,366.90457507,0.00026427,2]
[391832198,1760893859720,952.40939863,0.0003,2]
[391832301,1760893864988,503.03277051,0.00027791,5]
[391832405,1760893868041,5000.0,0.0003,2]
[391832406,1760893877369,259.15,0.00023374,2]
[391832407,1760893877892,518.3,0.00025499,2]
[391832408,1760893878650,777.45,0.00027623,2]